bitfinex/quotes_ETHUSD_20250720
["timestamp","ask_amount","ask_price","bid_price","bid_amount"]
[1753000342002,2.71318881,3685.7,3685.6,0.001]
[1753000342305,2.84838881,3685.7,3685.6,0.001]
[1753000342527,3.31598881,3685.7,3685.6,0.001]
[1753000344924,6.31598881,3685.7,3685.6,0.001]
[1753000346036,10.48498881,3685.7,3685.6,0.001]
[1753000352650,2.84838881,3685.7,3685.6,0.001]
[1753000352844,7.01738881,3685.7,3685.6,0.001]
[1753000353052,7.47868881,3685.7,3685.6,0.001]
[1753000354432,0.1352,3685.7,3685.6,0.4593]
[1753000354746,0.1352,3686.1,3685.7,0.791]
[1753000354962,4.169,3686.0,3685.8,0.4583]
[1753000358259,4.169,3686.0,3685.7,0.791]
[1753000358461,4.169,3686.0,3685.6,0.001]
[1753000358462,6.88198896,3686.0,3685.6,0.001]
[1753000358755,2.71298896,3686.0,3685.6,0.001]
[1753000358968,4.168,3685.9,3685.6,0.001]
[1753000359335,0.1352,3686.1,3685.6,0.4593]
[1753000359660,0.002,3686.7,3686.1,2.71288629]
[1753000359963,0.002,3686.7,3686.5,0.7877]
[1753000360473,0.002,3686.7,3686.6,0.4583]
[1753000360759,4.17,3686.7,3686.6,3.17082644]
[1753000361464,4.17,3686.7,3686.6,0.4583]
[1753000363863,0.002,3686.7,3686.6,0.4583]
[1753000364072,4.169,3686.7,3686.6,0.4583]
[1753000365850,0.002,3686.7,3686.6,0.4583]
[1753000366263,4.169,3686.7,3686.6,0.4583]
[1753000366436,4.168,3686.7,3686.6,0.4583]
[1753000367577,4.168,3686.7,3686.5,0.7877]
[1753000367875,4.168,3686.7,3686.5,1.246]
[1753000371258,4.168,3686.7,3686.6,0.4583]
[1753000372381,4.168,3686.7,3686.5,0.7877]
[1753000372786,4.168,3686.7,3686.5,1.246]
[1753000375285,4.168,3686.7,3686.5,3.95859462]
[1753000375852,4.168,3686.7,3686.4,2.71265052]
[1753000376047,4.168,3686.7,3686.4,3.17095052]
[1753000376564,4.168,3686.7,3686.4,0.4583]
[1753000378007,0.002,3686.7,3686.4,0.4583]
[1753000378161,4.167,3686.7,3686.4,0.4583]
[1753000379099,4.167,3686.7,3686.3,0.1352]
[1753000379607,4.167,3686.7,3686.3,3.31844426]
[1753000379959,4.167,3686.7,3686.4,0.4705]
[1753000380599,4.167,3686.7,3686.4,3.18317126]
[1753000380802,4.167,3686.7,3686.4,3.18316362]
[1753000381370,4.167,3686.7,3686.4,3.18314734]
[1753000381604,4.167,3686.7,3686.4,0.4705]
[1753000382224,4.167,3686.7,3686.4,3.18316826]
[1753000383208,4.167,3686.7,3686.4,0.4705]
[1753000383882,4.167,3686.7,3686.3,2.84792771]
[1753000384084,4.167,3686.7,3686.5,0.4705]
[1753000385515,4.167,3686.7,3686.4,0.001]
[1753000385677,4.167,3686.7,3686.4,0.4715]
[1753000386375,4.167,3686.7,3686.5,0.4705]
[1753000388720,4.163,3686.6,3686.5,3.18306823]
[1753000389080,4.163,3686.6,3686.5,0.4705]
[1753000390213,4.163,3686.6,3686.4,0.001]
[1753000391085,4.163,3686.6,3686.4,2.71367173]
[1753000391318,4.163,3686.6,3686.4,3.18417173]
[1753000391504,4.163,3686.6,3686.4,0.4715]
[1753000393113,4.163,3686.6,3686.5,0.4705]
[1753000394325,4.163,3686.6,3686.4,0.001]
[1753000394524,0.002,3686.7,3686.4,2.71366846]
[1753000394704,0.002,3686.7,3686.5,0.4705]
[1753000395015,4.165,3686.7,3686.5,3.18304034]
[1753000395222,4.165,3686.7,3686.4,2.71365534]
[1753000395371,4.165,3686.7,3686.4,0.4715]
[1753000396314,0.002,3686.7,3686.4,3.18416444]
[1753000396480,4.164,3686.7,3686.4,2.71366444]
[1753000396680,4.164,3686.7,3686.5,0.4705]
[1753000397006,0.002,3686.7,3686.5,0.4705]
[1753000397198,4.164,3686.7,3686.5,0.4705]
[1753000397580,4.164,3686.7,3686.4,2.71366444]
[1753000397905,4.164,3686.7,3686.4,3.18416444]
[1753000398306,4.164,3686.7,3686.4,0.4715]
[1753000398509,0.002,3686.7,3686.4,0.001]
[1753000398691,4.6158,3686.7,3686.4,0.001]
[1753000399310,4.164,3686.7,3686.4,0.001]
[1753000399999,4.164,3686.7,3686.4,2.71366644]
[1753000400329,4.164,3686.7,3686.4,3.18416644]
[1753000401139,4.164,3686.7,3686.5,2.71259681]
[1753000401318,4.164,3686.7,3686.4,3.18415061]
[1753000401805,4.164,3686.7,3686.4,2.71365061]
[1753000401995,4.164,3686.7,3686.5,0.4705]
[1753000404820,4.163,3686.7,3686.5,0.4705]
[1753000405637,4.163,3686.7,3686.4,0.001]
[1753000405817,4.163,3686.7,3686.4,0.4715]
[1753000406404,4.163,3686.7,3686.4,3.18416206]
[1753000407624,4.163,3686.7,3686.4,0.4715]
[1753000408629,4.163,3686.7,3686.4,3.18416914]
[1753000410748,0.002,3686.7,3686.4,3.18416914]
[1753000410931,4.163,3686.7,3686.4,3.18416914]
[1753000413361,4.163,3686.7,3686.5,2.71259608]
[1753000413656,4.162,3686.7,3686.5,2.71259608]
[1753000414011,4.162,3686.7,3686.4,3.18414933]
[1753000414472,4.162,3686.7,3686.5,2.71258968]
[1753000416264,0.002,3686.7,3686.6,2.71252644]
[1753000416479,0.002,3686.7,3686.6,8.30152644]
[1753000416779,0.002,3686.7,3686.6,11.30152644]
[1753000416962,0.002,3686.7,3686.6,13.61167915]
[1753000419022,0.002,3686.7,3686.6,14.38153854]
[1753000419228,0.002,3686.7,3686.6,16.1595967]
[1753000421672,0.002,3686.7,3686.6,20.81959669]
[1753000430690,0.002,3686.7,3686.6,10.11678459]
[1753000430876,0.4416,3686.7,3686.4,0.001]
[1753000431077,0.4416,3686.7,3686.4,2.71366466]
[1753000431284,0.4396,3686.6,3686.4,2.71366466]
[1753000432876,0.4396,3686.6,3686.4,0.001]
[1753000433278,0.4396,3686.6,3686.4,4.158]
[1753000433464,0.002,3686.7,3686.4,0.001]
[1753000433665,0.4396,3686.5,3686.4,0.001]
[1753000433865,0.002,3686.7,3686.4,0.001]
[1753000434062,0.002,3686.7,3686.6,2.71252644]
[1753000434278,0.002,3686.7,3686.6,3.17532644]
[1753000437615,0.002,3686.7,3686.6,3.77350818]
[1753000439022,0.002,3686.7,3686.6,3.74638292]
[1753000439916,0.002,3686.7,3686.6,0.57105648]
[1753000440079,0.002,3686.7,3686.6,2.71252644]
[1753000440414,0.4392,3686.7,3686.6,2.71252644]
[1753000441119,0.002,3686.7,3686.6,6.86852644]
[1753000441279,0.4392,3686.7,3686.5,0.1352]
[1753000441483,0.4372,3686.6,3686.5,4.2912]
[1753000442294,0.002,3686.7,3686.5,4.2912]
[1753000442490,0.002,3686.7,3686.5,7.00373669]
[1753000442703,0.002,3686.7,3686.5,4.2912]
[1753000442904,0.002,3686.7,3686.6,2.71252644]
[1753000443523,0.002,3686.7,3686.6,3.93992644]
[1753000443821,0.002,3686.7,3686.6,5.34240654]
[1753000445328,0.002,3686.7,3686.6,5.3695318]
[1753000449737,0.002,3686.7,3686.6,8.3695318]
[1753000450035,0.002,3686.7,3686.6,8.34240654]
[1753000455336,0.002,3686.7,3686.6,4.11500654]
[1753000455822,0.002,3686.7,3686.6,8.26900654]
[1753000457539,0.002,3686.7,3686.6,4.154]
[1753000457732,0.4392,3686.7,3686.6,4.154]
[1753000457933,0.4392,3686.7,3686.5,0.1362]
[1753000458132,0.002,3686.7,3686.5,0.1362]
[1753000458358,0.4372,3686.6,3686.5,0.001]
[1753000459742,3.14972644,3686.6,3686.5,0.001]
[1753000461867,0.4372,3686.6,3686.5,0.001]
[1753000462566,0.002,3686.7,3686.5,0.001]
[1753000463561,0.002,3686.7,3686.5,2.71355742]
[1753000463936,0.002,3686.7,3686.5,0.001]
[1753000464987,0.002,3686.7,3686.5,2.71358256]
[1753000465650,0.002,3686.7,3686.5,3.15848256]
[1753000466383,0.002,3686.7,3686.6,0.1352]
[1753000466593,0.4372,3686.6,3686.5,0.001]
[1753000469714,0.002,3686.7,3686.5,0.001]
[1753000470162,0.467,3686.6,3686.5,0.001]
[1753000470556,0.002,3686.7,3686.5,0.001]
[1753000470758,0.467,3686.6,3686.5,0.001]
[1753000472319,0.002,3686.7,3686.5,0.001]
[1753000472522,0.002,3686.7,3686.5,3.18655182]
[1753000473087,0.002,3686.7,3686.6,2.71252644]
[1753000473598,0.002,3686.7,3686.5,0.001]
[1753000474527,0.002,3686.7,3686.5,2.71355907]
[1753000474900,0.002,3686.7,3686.5,0.001]
[1753000475099,0.002,3686.7,3686.5,2.71357679]
[1753000475300,0.002,3686.7,3686.5,0.001]
[1753000475621,0.002,3686.7,3686.5,2.7135345]
[1753000475807,0.002,3686.7,3686.5,0.001]
[1753000475995,0.002,3686.7,3686.6,2.71252644]
[1753000476193,0.002,3686.7,3686.6,0.473]
[1753000476409,0.002,3686.7,3686.6,3.18552644]
[1753000477082,0.002,3686.7,3686.6,2.71252644]
[1753000478924,0.002,3686.7,3686.6,3.18552644]
[1753000479900,0.002,3686.7,3686.6,2.71252644]
[1753000480625,0.002,3686.7,3686.5,0.001]
[1753000480927,0.469,3686.7,3686.5,0.001]
[1753000481512,0.1352,3686.9,3686.5,0.001]
[1753000482125,2.84750845,3686.9,3686.5,0.001]
[1753000483502,0.2889,3686.8,3686.5,0.001]
[1753000486132,0.1352,3686.9,3686.5,0.001]
[1753000486332,0.4241,3686.9,3686.5,0.001]
[1753000486534,3.13640871,3686.9,3686.5,0.001]
[1753000487342,7.28740871,3686.9,3686.5,0.001]
[1753000488849,2.71238419,3686.8,3686.5,0.001]
[1753000489145,0.2889,3686.8,3686.5,0.001]
[1753000489642,6.99851932,3686.9,3686.5,0.001]
[1753000489813,0.2889,3686.8,3686.5,0.001]
[1753000492248,2.71252644,3686.6,3686.5,0.001]
[1753000492547,2.71245483,3686.7,3686.5,0.001]
[1753000492712,0.1352,3686.6,3686.5,0.001]
[1753000493646,4.15,3686.7,3686.5,0.001]
[1753000493818,4.2852,3686.7,3686.5,0.001]
[1753000494440,4.2852,3686.7,3686.5,0.474]
[1753000494952,0.1352,3686.7,3686.5,0.474]
[1753000495149,0.1352,3686.7,3686.6,1.17645442]
[1753000495355,0.1352,3686.7,3686.6,1.2499]
[1753000497284,0.002,3686.9,3686.6,0.7769]
[1753000497502,0.002,3686.9,3686.7,0.473]
[1753000498289,0.002,3686.9,3686.6,0.7769]
[1753000498594,0.002,3686.9,3686.8,0.4379]
[1753000499282,0.002,3686.9,3686.8,3.15027929]
[1753000499979,0.002,3686.9,3686.8,3.81435622]
[1753000503203,0.002,3686.9,3686.8,0.66407693]
[1753000503392,0.002,3686.9,3686.6,2.84769677]
[1753000503898,0.002,3686.9,3686.6,2.84772577]
[1753000504256,0.002,3686.9,3686.7,2.71244056]
[1753000504892,0.002,3686.9,3686.7,3.15034056]
[1753000505094,0.002,3686.9,3686.7,3.83271147]
[1753000505297,0.002,3686.9,3686.8,2.71237929]
[1753000505595,0.002,3686.9,3686.8,3.15027929]
[1753000505998,0.002,3686.9,3686.8,3.28547929]
[1753000507461,0.002,3686.9,3686.8,4.10897929]
[1753000507659,0.002,3686.9,3686.8,4.86217893]
[1753000517177,0.002,3686.9,3686.8,9.00917893]
[1753000525785,0.002,3686.9,3686.8,4.42427893]
[1753000526117,0.002,3686.9,3686.8,9.00717893]
[1753000531715,0.002,3687.1,3687.0,2.71223216]
[1753000531903,0.002,3687.1,3687.0,12.95404389]
[1753000532106,0.002,3687.1,3687.0,13.06212157]
[1753000532296,0.002,3687.1,3687.0,13.53222157]
[1753000532683,0.002,3687.6,3687.2,0.7626]
[1753000532889,0.002,3687.6,3687.4,3.8426121]
[1753000533098,0.002,3687.6,3687.4,5.12453055]
[1753000533303,0.002,3687.6,3687.4,8.3065685]
[1753000533490,0.002,3687.6,3687.4,8.27944913]
[1753000533692,1e-08,3687.6,3687.5,2.7118644]
[1753000533892,0.002,3688.4,3687.5,2.7118644]
[1753000533893,1e-08,3687.8,3687.7,3.0]
[1753000534227,1e-08,3687.8,3687.7,8.87141657]
[1753000534537,1e-08,3687.8,3687.7,21.19741149]
[1753000534904,1e-08,3687.8,3687.7,18.11739939]
[1753000535103,1e-08,3687.8,3687.7,21.19741149]
[1753000537539,1e-08,3687.8,3687.7,5.8442994]
[1753000537840,1e-08,3687.8,3687.7,8.22261733]
[1753000539237,1e-08,3687.8,3687.7,8.22161733]
[1753000541032,1e-08,3687.8,3687.7,4.07961733]
[1753000541236,1e-08,3687.8,3687.7,8.22161733]
[1753000542026,1e-08,3687.8,3687.7,4.07961733]
[1753000542233,1e-08,3687.8,3687.7,9.32072121]
[1753000543158,1e-08,3687.8,3687.7,12.32072121]
[1753000550795,1e-08,3687.8,3687.7,12.87072121]
[1753000553165,1e-08,3687.8,3687.7,15.95073331]
[1753000554695,1e-08,3687.8,3687.7,20.6107333]
[1753000555058,1e-08,3687.8,3687.7,16.4687333]
[1753000555263,1e-08,3687.8,3687.7,20.6087333]
[1753000555580,1e-08,3687.8,3687.7,13.5086212]
[1753000556170,1e-08,3687.8,3687.7,13.9787212]
[1753000557097,1e-08,3687.8,3687.7,13.5086212]
[1753000557792,1e-08,3687.8,3687.7,13.9787212]
[1753000567730,1e-08,3687.8,3687.7,13.2161212]
[1753000570240,1e-08,3688.2,3688.1,6.47862322]
[1753000570527,1e-08,3688.2,3688.1,18.35763531]
[1753000570732,1e-08,3688.2,3688.1,18.95283531]
[1753000574953,1e-08,3688.2,3688.1,10.50662321]
[1753000575099,1e-08,3688.2,3688.1,11.64462321]
[1753000575638,1e-08,3688.2,3688.1,6.98462322]
[1753000576039,1e-08,3688.2,3688.1,2.84662322]
[1753000576248,1e-08,3688.2,3688.1,6.98462322]
[1753000579251,1e-08,3688.2,3688.1,6.98362322]
[1753000582929,1e-08,3688.2,3688.1,2.84662322]
[1753000583233,1e-08,3688.2,3687.6,0.001]
[1753000583234,0.28890001,3688.2,3687.6,0.001]
[1753000583644,2.71169225,3687.8,3687.6,0.001]
[1753000583963,0.28890001,3688.2,3687.6,0.001]
[1753000584118,0.2889,3687.8,3687.6,0.001]
[1753000584445,0.2889,3688.1,3687.6,0.001]
[1753000584674,3.00033927,3688.1,3687.6,0.001]
[1753000584880,0.2889,3688.0,3687.6,4.138]
[1753000585042,1e-08,3688.2,3687.6,4.138]
[1753000585246,1e-08,3688.2,3687.8,2.71162906]
[1753000585470,1e-08,3688.2,3687.8,6.84862906]
[1753000585645,0.28890001,3688.2,3687.8,6.84862906]
[1753000585846,0.28890001,3688.2,3687.8,6.84862844]
[1753000586982,0.2889,3688.1,3687.8,4.137]
[1753000587769,1e-08,3688.2,3687.6,0.001]
[1753000587770,0.2889,3688.0,3687.6,0.001]
[1753000587960,2.71164138,3687.9,3687.6,0.001]
[1753000588459,0.2889,3687.8,3687.6,0.001]
[1753000589367,2.71164987,3687.8,3687.6,0.001]
[1753000589572,0.2889,3687.7,3687.6,0.001]
[1753000590680,3.00061733,3687.7,3687.6,0.001]
[1753000592671,0.2889,3687.7,3687.6,0.001]
[1753000592873,3.00061733,3687.7,3687.6,0.001]
[1753000593195,4.687,3688.3,3687.6,0.001]
[1753000593398,0.1352,3687.9,3687.6,0.001]
[1753000594198,0.1352,3687.9,3687.6,2.71277791]
[1753000594370,0.1352,3687.9,3687.6,0.001]
[1753000594914,0.1352,3687.9,3687.6,3.16158605]
[1753000595083,0.1352,3687.9,3687.8,2.71164379]
[1753000595592,0.1352,3687.9,3687.7,3.16050725]
[1753000595783,2.71113972,3688.5,3687.8,2.71163968]
[1753000595979,0.1352,3688.2,3687.7,0.4488]
[1753000596184,3.1372,3688.6,3688.0,2.71146537]
[1753000596384,3.1372,3688.6,3687.9,2.84675739]
[1753000596385,2.84826522,3688.6,3687.9,2.84675739]
[1753000596899,3.1372,3688.6,3688.0,2.71148099]
[1753000597210,2.84826064,3688.6,3687.9,2.84675281]
[1753000597423,2.71112953,3688.5,3687.9,0.1352]
[1753000597711,3.1372,3688.6,3687.9,0.1352]
[1753000598008,2.71114517,3688.5,3687.9,0.1352]
[1753000598216,0.002,3688.2,3687.9,0.1352]
[1753000598785,0.002,3688.2,3688.1,2.71142322]
[1753000599412,0.002,3688.2,3688.1,3.76101978]
[1753000599614,0.002,3688.2,3688.1,4.67751978]
[1753000599832,0.002,3688.2,3688.1,4.70463401]
[1753000600317,0.002,3688.2,3688.1,4.67751978]
[1753000601936,0.002,3688.2,3688.1,4.70463401]
[1753000602946,0.002,3688.2,3688.1,7.78464611]
[1753000603146,0.002,3688.2,3688.1,7.75753188]
[1753000603812,0.002,3688.2,3688.1,10.75753188]
[1753000608042,0.002,3688.2,3688.1,15.41753187]
[1753000613969,0.002,3688.2,3688.1,12.33751977]
[1753000614872,0.002,3688.2,3688.1,11.55621977]
[1753000615044,0.002,3688.2,3688.1,7.50662321]
[1753000615246,0.002,3688.2,3688.1,11.64062321]
[1753000616976,0.002,3688.2,3688.1,7.50662321]
[1753000617181,0.002,3688.2,3688.1,11.64062321]
[1753000617683,0.002,3688.2,3688.1,7.50662321]
[1753000617883,0.002,3688.2,3688.1,11.64062321]
[1753000619682,0.002,3688.2,3688.1,4.79519999]
[1753000619909,0.002,3688.2,3687.9,0.1352]
[1753000620057,0.002,3688.2,3687.8,0.001]
[1753000620058,2.71157027,3687.9,3687.8,0.001]
[1753000621487,2.71151867,3688.0,3687.8,0.001]
[1753000621789,2.71157027,3687.9,3687.8,0.001]
[1753000623370,2.7115139,3688.0,3687.8,0.001]
[1753000623906,2.71157027,3687.9,3687.8,0.001]
[1753000624472,2.71142322,3688.1,3687.8,0.001]
[1753000624654,0.1352,3687.9,3687.8,0.001]
[1753000625198,2.84677027,3687.9,3687.8,0.001]
[1753000628274,5.84677027,3687.9,3687.8,0.001]
[1753000629423,6.39677027,3687.9,3687.8,0.001]
[1753000630245,36.39677027,3687.9,3687.8,0.001]
[1753000633558,6.39677027,3687.9,3687.8,0.001]
[1753000636768,6.39677027,3687.9,3687.8,1e-08]
[1753000636959,6.39677027,3687.9,3687.3,0.001]
[1753000636960,6.26193795,3687.4,3687.3,0.001]
[1753000637166,43.47695005,3687.4,3687.3,0.001]
[1753000638161,6.2621586,3687.1,3687.0,0.001]
[1753000638462,40.3971586,3687.1,3687.0,0.001]
[1753000638828,3.26230573,3686.9,3686.8,1e-08]
[1753000639062,39.34231783,3686.9,3686.8,1e-08]
[1753000639661,43.47731783,3686.9,3686.8,1e-08]
[1753000640225,13.47731783,3686.9,3686.8,1e-08]
[1753000641104,43.47731783,3686.9,3686.8,1e-08]
[1753000641639,43.47731783,3686.9,3686.4,1e-08]
[1753000641640,3.26252644,3686.6,3686.4,1e-08]
[1753000641961,0.55,3686.3,3686.2,1e-08]
[1753000642163,40.39874719,3686.3,3686.2,1e-08]
[1753000643433,40.53236682,3686.3,3686.2,1e-08]
[1753000645088,40.73937983,3686.3,3686.2,1e-08]
[1753000645290,10.73937983,3686.3,3686.2,1e-08]
[1753000645587,10.53236682,3686.3,3686.2,1e-08]
[1753000651808,10.53236682,3686.3,3686.2,0.46620001]
[1753000651809,6.84974719,3686.3,3686.2,0.46620001]
[1753000652108,7.39974719,3686.3,3686.2,0.46620001]
[1753000652310,7.39974719,3686.3,3686.2,1e-08]
[1753000652526,10.53774082,3686.3,3686.2,1e-08]
[1753000653230,10.39974719,3686.3,3686.2,1e-08]
[1753000653823,10.39974719,3686.3,3686.2,0.46620001]
[1753000656616,10.39974719,3686.3,3686.2,1e-08]
[1753000657706,6.26274719,3686.3,3686.2,1e-08]
[1753000657985,10.39974719,3686.3,3686.2,0.46620001]
[1753000659948,7.687,3686.3,3686.2,0.46620001]
[1753000660147,4.137,3686.3,3686.2,0.46620001]
[1753000660847,6.84974719,3686.3,3686.2,0.46620001]
[1753000661055,4.137,3686.3,3686.2,0.46620001]
[1753000663668,4.137,3686.3,3686.2,0.80016949]
[1753000664019,4.137,3686.3,3686.2,0.46620001]
[1753000668569,4.139,3686.3,3686.2,0.46620001]
[1753000673768,4.138,3686.3,3686.2,3.1790208]
[1753000673936,4.138,3686.3,3686.2,0.46620001]
[1753000674552,4.138,3686.3,3686.2,3.1790208]
[1753000674751,4.138,3686.3,3686.2,0.46620001]
[1753000675354,0.002,3686.3,3686.2,4.67306541]
[1753000676191,0.002,3686.3,3686.2,1.96024462]
[1753000676392,0.002,3686.3,3686.2,1.27450001]
[1753000676750,0.002,3686.3,3686.2,1e-08]
[1753000677146,0.002,3686.3,3686.2,1.27450001]
[1753000678899,0.002,3686.3,3686.2,3.9873208]
[1753000679449,0.002,3686.3,3686.2,1.27450001]
[1753000681503,0.002,3686.3,3686.2,4.39967955]
[1753000681671,0.002,3686.3,3686.2,4.53487955]
[1753000683387,0.002,3686.3,3686.2,1.40970001]
[1753000683985,0.002,3686.3,3686.2,0.43950001]
[1753000684189,0.002,3686.3,3686.2,3.9348208]
[1753000684794,0.002,3686.3,3686.2,4.0700208]
[1753000686024,0.002,3687.1,3687.0,2.71223216]
[1753000686176,0.002,3687.1,3687.0,4.20545538]
[1753000686383,0.002,3687.1,3687.0,4.34065538]
[1753000691622,0.002,3687.1,3687.0,0.84592322]
[1753000691784,0.002,3687.1,3687.0,0.5747]
[1753000695024,0.002,3687.1,3687.0,3.28693216]
[1753000697324,0.002,3687.1,3687.0,0.5747]
[1753000697721,0.002,3687.1,3687.0,3.28693216]
[1753000700923,0.002,3687.1,3687.0,4.07353216]
[1753000701085,0.002,3687.1,3687.0,5.47432312]
[1753000701292,0.002,3687.1,3687.0,9.64144544]
[1753000701492,0.002,3687.1,3687.0,9.61432312]
[1753000709297,0.002,3687.1,3687.0,12.61432312]
[1753000709914,1e-08,3687.1,3687.0,12.47912312]
[1753000711096,1e-08,3687.1,3687.0,15.55913522]
[1753000713000,1e-08,3687.1,3687.0,8.33912312]
[1753000713201,1e-08,3687.1,3687.0,8.07733216]
[1753000713738,1e-08,3687.1,3687.0,11.15734426]
[1753000719967,1e-08,3687.1,3687.0,11.29254426]
[1753000721158,1e-08,3687.1,3687.0,11.29054426]
[1753000722168,1e-08,3687.1,3687.0,14.29054426]
[1753000722471,1e-08,3687.1,3687.0,15.99083522]
[1753000730253,1e-08,3687.8,3687.5,3.4655644]
[1753000730454,1e-08,3687.8,3687.7,5.92692943]
[1753000730968,1e-08,3687.8,3687.7,6.36332943]
[1753000731313,1e-08,3687.8,3687.7,7.75961881]
[1753000734827,0.002,3687.9,3687.8,2.71164379]
[1753000734828,1e-08,3687.9,3687.8,2.71164379]
[1753000734975,1e-08,3687.9,3687.8,11.11386022]
[1753000735211,1e-08,3687.9,3687.8,11.08674379]
[1753000738265,1e-08,3687.9,3687.8,16.29674378]
[1753000738553,1e-08,3687.9,3687.8,18.92992648]
[1753000738712,1e-08,3687.9,3687.8,19.12927681]
[1753000739230,1e-08,3687.9,3687.8,18.37992648]
[1753000740142,0.002,3689.0,3687.8,18.37992648]
[1753000740143,1e-08,3688.4,3688.3,3.50537619]
[1753000740345,1e-08,3688.4,3688.3,18.7289259]
[1753000740556,1e-08,3688.4,3688.3,19.3087259]
[1753000740945,0.002,3689.0,3688.9,2.7108352]
[1753000741130,0.002,3689.2,3689.1,2.71068824]
[1753000741335,0.002,3689.2,3689.1,11.50368823]
[1753000741541,0.002,3689.2,3689.1,11.63888823]
[1753000742362,0.002,3689.2,3689.1,4.79519999]
[1753000742525,0.002,3689.2,3689.1,11.63888823]
[1753000742726,0.002,3689.2,3689.1,7.50588823]
[1753000746947,0.002,3689.2,3689.1,2.84588824]
[1753000747474,0.002,3689.2,3689.1,3.8148546]
[1753000748273,0.002,3689.2,3689.1,4.28656148]
[1753000748774,0.002,3689.2,3689.1,4.2594546]
[1753000749337,0.002,3689.2,3689.1,8.3954546]
[1753000751973,0.002,3689.2,3689.1,2.84588824]
[1753000752869,0.002,3689.2,3689.1,3.29048824]
[1753000755798,0.002,3689.2,3689.1,2.84588824]
[1753000757067,0.002,3689.2,3689.1,2.87299512]
[1753000757584,0.002,3689.2,3689.1,7.45759512]
[1753000757759,0.002,3689.2,3689.1,8.75532819]
[1753000758787,0.002,3689.2,3689.1,13.41532818]
[1753000759689,1e-08,3689.2,3689.1,17.24272818]
[1753000771603,1e-08,3689.2,3689.1,17.10752818]
[1753000771780,1e-08,3689.2,3689.1,17.10252818]
[1753000773111,1e-08,3689.2,3689.1,12.96752818]
[1753000773408,1e-08,3689.2,3689.1,17.10252818]
[1753000774828,1e-08,3689.2,3689.1,17.10052818]
[1753000776736,1e-08,3689.2,3689.1,17.10152818]
[1753000778979,1e-08,3689.2,3689.1,17.10052818]
[1753000781421,0.002,3690.0,3689.9,2.71010054]
[1753000781626,0.002,3690.0,3689.9,10.19312269]
[1753000781929,0.002,3690.0,3689.9,10.76802269]
[1753000782413,0.002,3690.7,3690.6,2.70958651]
[1753000782614,0.002,3690.7,3690.6,6.97678651]
[1753000782815,0.002,3690.7,3690.6,7.41648651]
[1753000783020,0.002,3690.7,3690.6,4.70783387]
[1753000783228,0.002,3690.7,3690.6,2.70958651]
[1753000783584,0.002,3690.7,3690.6,2.84478651]
[1753000783892,0.002,3690.7,3690.6,6.98278651]
[1753000785286,0.002,3690.7,3690.6,10.50249861]
[1753000785486,0.002,3690.7,3690.6,12.36521629]
[1753000787227,0.002,3690.7,3690.6,9.28620419]
[1753000787519,0.002,3690.7,3690.6,12.36621629]
[1753000788419,0.002,3690.7,3690.6,9.36750418]
[1753000788728,0.002,3690.7,3690.6,13.50650418]
[1753000789424,0.002,3690.7,3690.6,13.94620418]
[1753000792421,0.002,3690.7,3690.6,14.70120418]
[1753000794326,0.002,3692.3,3691.8,2.70869246]
[1753000794526,0.002,3692.3,3691.9,2.70862299]
[1753000794729,0.002,3692.3,3692.0,0.1352]
[1753000794918,0.002,3692.2,3692.0,0.1352]
[1753000795116,0.1352,3692.4,3692.0,0.1352]
[1753000795330,0.002,3692.1,3692.0,0.1352]
[1753000795842,0.00167883,3693.7,3692.2,2.70841232]
[1753000796032,0.00167883,3693.7,3692.6,3.0800121]
[1753000796227,0.002,3693.6,3692.7,4.141]
[1753000796411,0.002,3693.6,3693.1,2.70775195]
[1753000796606,0.00167883,3693.7,3693.2,4.142]
[1753000797021,0.00167883,3693.7,3693.2,6.84966067]
[1753000797225,0.00167883,3693.7,3693.3,0.02707605]
[1753000797423,0.00167883,3693.7,3692.1,0.7893]
[1753000797424,0.00167883,3693.7,3692.5,0.4397]
[1753000797622,0.00167883,3693.7,3692.2,3.02708412]
[1753000797830,2.70745016,3693.6,3692.7,2.70803812]
[1753000798031,0.00167883,3693.7,3692.4,0.4673]
[1753000798323,2.70738574,3693.6,3692.7,2.70801079]
[1753000798524,0.00167883,3693.7,3692.7,2.70801079]
[1753000798525,0.002,3692.9,3692.7,2.70801079]
[1753000798725,0.002,3692.9,3692.3,0.96048394]
[1753000798726,0.002,3692.9,3692.8,2.70797227]
[1753000798922,0.002,3692.9,3692.8,6.49727227]
[1753000799121,0.002,3692.9,3692.8,6.96457227]
[1753000799419,0.002,3692.9,3692.8,5.70797227]
[1753000799976,0.002,3692.9,3692.8,2.70797227]
[1753000800555,0.002,3692.9,3692.4,4.3366121]
[1753000800860,0.002,3692.9,3692.8,2.70797227]
[1753000801845,0.002,3692.9,3692.8,3.17527227]
[1753000802226,0.002,3692.9,3692.8,6.28236409]
[1753000802446,0.002,3692.9,3692.8,3.17527227]
[1753000802767,0.002,3692.9,3692.8,4.07161028]
[1753000804975,0.002,3692.9,3692.8,4.09869]
[1753000805687,0.00167883,3693.7,3693.6,2.70738574]
[1753000806035,2.70538453,3696.4,3693.6,2.70738574]
[1753000806036,0.21241081,3697.3,3694.6,3.0]
[1753000806238,2.70356733,3698.9,3694.6,3.0]
[1753000806239,0.00138363,3699.9,3697.4,3.0]